lending/lending_fUSD_20250303
["ID","MTS","AMOUNT","RATE_DAILY","PERIOD"]
[355240777,1741034899292,-500.35172483,0.00012811,2]
[355240778,1741034899323,-500.35172483,0.00012822,2]
[355240779,1741034899354,-500.35172483,0.00012833,2]
[355240780,1741034899384,-500.35172483,0.00012844,2]
[355240781,1741034899415,-500.35172483,0.00012856,2]
[355240782,1741034899449,-500.35172483,0.00012867,2]
[355240783,1741034899482,-362.75677896,0.00012878,2]
[355240784,1741034899539,-137.59494587,0.00012878,2]
[355240785,1741034899571,-500.35172483,0.00012889,2]
[355240786,1741034899605,-868.08361754,0.00012899,2]
[355240787,1741034899635,-150.0,0.00012899,2]
[355240788,1741034899665,-4148.10204472,0.000129,2]
[355240789,1741034899706,-5804.13233296,0.000129,2]
[355240790,1741034899744,-4661.44289183,0.000129,2]
[355240791,1741034899796,-5804.13233296,0.000129,2]
[355240792,1741034899864,-5804.13233296,0.000129,2]
[355240825,1741035031613,-1125.69184053,0.000129,2]
[355240828,1741035031673,-405.70529999,0.000129,2]
[355240829,1741035031731,-262.939655,0.000129,2]
[355240830,1741035031743,-41333.29344558,0.000129,2]
[355240831,1741035031791,-8417.44596085,0.000129,2]
[355240881,1741035037404,-17409.09423741,0.000129,2]
[355240882,1741035037514,-2089.97732178,0.000129,2]
[355240883,1741035037571,-278.24999975,0.000129,2]
[355240884,1741035037662,-12561.1288829,0.000129,2]
[355240911,1741035039612,-1350.4110927,0.000129,2]
[355240923,1741035042929,-4281.7775,0.000129,2]
[355240924,1741035042941,-91842.42398558,0.000129,2]
[355240925,1741035042950,-500.35172483,0.000129,2]
[355240926,1741035042960,-3303.4104062,0.000129,2]
[355240927,1741035042972,-3405.10293908,0.000129,2]
[355240928,1741035042982,-595.61741432,0.000129,2]
[355240930,1741035042991,-550.37150463,0.000129,2]
[355240931,1741035043001,-163.43135064,0.000129,2]
[355240932,1741035043011,-150.0,0.00012922,2]
[355240933,1741035043020,-167.07,0.00012944,2]
[355240934,1741035043030,-501.36150588,0.00012973,2]
[355240935,1741035043040,-160.03302035,0.00012973,2]
[355240936,1741035043049,-502.41339455,0.00012973,2]
[355240937,1741035043059,-160.19454357,0.00012973,2]
[355240938,1741035043069,-500.0,0.00012973,2]
[355240939,1741035043078,-500.0,0.00012973,2]
[355240941,1741035043087,-173.09300095,0.00012973,2]
[355240943,1741035043097,-2069353.01566986,0.00013,2]
[355241010,1741035044297,-511.6967679,0.00013,2]
[355241011,1741035044314,-179946.14793812,0.00013,2]
[355241012,1741035044325,-194229.45683211,0.00013,2]
[355241013,1741035044337,-681.92468669,0.00013,2]
[355241068,1741035046052,-72848.60023255,0.00013,2]
[355241111,1741035046503,-120047.421,0.00013,2]
[355241112,1741035046515,-552.90702531,0.00013,2]
[355241113,1741035046526,-507.06223067,0.00013,2]
[355241114,1741035046537,-590.85000038,0.00013,2]
[355241115,1741035046549,-13825.54838228,0.00013,2]
[355241116,1741035046574,-4406.25,0.00013,2]
[355241117,1741035046586,-39193.94004735,0.00013,2]
[355241118,1741035046606,-2678.81538792,0.00013,2]
[355241119,1741035046617,-11521.44718705,0.00013,2]
[355241120,1741035242432,451.68701862,0.00020011,120]
[355241122,1741035528952,178.15,0.00012439,2]
[355241123,1741035606486,150.0,0.00012375,7]
[355241124,1741035742856,167.07,0.00012351,2]
[355241125,1741035846687,5206.030406,0.0002,120]
[355241128,1741036064072,576.93,0.00010315,2]
[355241129,1741036103115,917.46,0.00012252,2]
[355241130,1741036128449,289.6,0.0001223,2]
[355241381,1741036161395,531.18,0.00012352,2]
[355241382,1741036161622,531.18,0.00012417,2]
[355241383,1741036162038,531.18,0.00012482,2]
[355241415,1741036231792,-531.18,0.00012547,2]
[355241416,1741036231803,-150.0,0.00012548,2]
[355241417,1741036231814,-1000.0,0.00012548,2]
[355241418,1741036231824,-576.93,0.00012579,2]
[355241419,1741036231834,-225.43,0.00012606,2]
[355241420,1741036231844,-531.18,0.00012612,2]
[355241421,1741036231854,-165.68,0.00012622,2]
[355241422,1741036231865,-531.18,0.00012677,2]
[355241423,1741036231875,-300.0,0.00012739,2]
[355241424,1741036231886,-4881.4,0.0001274,2]
[355241425,1741036231897,-171.539,0.0001274,2]
[355241426,1741036231907,-531.18,0.00012742,2]
[355241427,1741036231917,-531.18,0.00012807,2]
[355241428,1741036231927,-531.18,0.00012872,2]
[355241429,1741036231936,-150.0,0.00012899,2]
[355241430,1741036231946,-595.61741432,0.000129,2]
[355241431,1741036231956,-3239.84304166,0.000129,2]
[355241432,1741036232036,-4870.37985391,0.000129,2]
[355241433,1741036232047,-163.43135064,0.000129,2]
[355241434,1741036232056,-550.37150463,0.000129,2]
[355241435,1741036232066,-531.18,0.00012937,2]
[355241436,1741036232076,-160.19454357,0.00012973,2]
[355241438,1741036232086,-502.41339455,0.00012973,2]
[355241440,1741036232095,-500.0,0.00012973,2]
[355241442,1741036232105,-501.36150588,0.00012973,2]
[355241444,1741036232115,-160.03302035,0.00012973,2]
[355241445,1741036232124,-173.09300095,0.00012973,2]
[355241447,1741036232134,-500.0,0.00012973,2]
[355241449,1741036232145,-600.0,0.00012999,2]
[355241451,1741036232154,-500.0,0.00012999,2]
[355241453,1741036232169,-200.0,0.00012999,2]
[355241455,1741036232180,-500.0,0.00012999,2]
[355241457,1741036232189,-561.13116938,0.00012999,2]
[355241459,1741036232199,-380.20844917,0.00012999,2]
[355241462,1741036232426,-300.0,0.00012999,2]
[355241463,1741036232435,-505309.97073844,0.00013,2]
[355241464,1741036232447,-94605.24258508,0.00013,2]
[355241505,1741036237608,-1017.95680749,0.00013,2]
[355241506,1741036237776,-289.84939151,0.00013,2]
[355241507,1741036237788,-1067.5,0.00013,2]
[355241508,1741036237834,-345.13,0.00013,2]
[355241509,1741036237846,-26426.19518027,0.00013,2]
[355241510,1741036237913,-24229.0812398,0.00013,2]
[355241536,1741036239818,-1726.08845379,0.00013,2]
[355241537,1741036239830,-5065.32356524,0.00013,2]
[355241538,1741036239884,-2125.28462955,0.00013,2]
[355241539,1741036239896,-2020.81199649,0.00013,2]
[355241540,1741036239994,-2080685.46647486,0.00013,2]
[355241541,1741036240033,-1094.0,0.00013,2]
[355241577,1741036243828,-2486.28656275,0.00013,2]
[355241578,1741036243840,-3019.7530665,0.00013,2]
[355241579,1741036243869,-1301.1972,0.00013,2]
[355241580,1741036243911,-483.555,0.00013,2]
[355241581,1741036243931,-2422.8605,0.00013,2]
[355241582,1741036245708,-1484.73048015,0.000129,2]
[355241583,1741036245726,-1920.37245893,0.000129,2]
[355241584,1741036245741,-242.56527286,0.00013,2]
[355241585,1741036245760,-856.7929336,0.00013,2]
[355241586,1741036245950,-1131.1209526,0.00013,2]
[355241587,1741036245970,-349.97230603,0.00013,2]
[355241588,1741036245992,-77874.73388216,0.00013,2]
[355241589,1741036246015,-5199.88223325,0.00013,2]
[355241591,1741036246041,-1777.82219891,0.00013,2]
[355241593,1741036246063,-2664.999995,0.00013,2]
[355241596,1741036246089,-263.258183,0.00013,2]
[355241697,1741036326508,225.43,0.0001244,2]
[355241698,1741036386794,1000.0,0.00012418,2]
[355241699,1741036600356,-280.30691964,0.000129,2]
[355241701,1741036630214,-151.0,0.000128,2]
[355241702,1741036652607,150.0,0.0001229,7]
[355241703,1741036708946,-300.0,0.00012899,2]
[355241704,1741036708970,-150.0,0.000129,2]
[355241705,1741036906941,-542.67,0.0001288,2]
[355241706,1741036922676,-45.02291,0.0001288,2]
[355241707,1741036922702,-147.6526571,0.00012893,2]
[355241708,1741036954871,-102.3473429,0.00012893,2]
[355241709,1741036963577,-445.61741432,0.000129,2]
[355241710,1741036963602,-1865.33818429,0.000129,2]
[355241711,1741036963628,-1717.69581664,0.000129,2]
[355241712,1741036963652,-21.33124185,0.000129,2]
[355241713,1741036978018,-163.43135064,0.000129,2]
[355241714,1741037073664,519.23,0.00010332,2]
[355241715,1741037117278,150.82,0.00012224,2]
[355241716,1741037127394,-519.23,0.00012595,2]
[355241717,1741037127421,-587.69291,0.0001287,2]
[355241718,1741037127447,-150.0,0.00012875,2]
[355241719,1741037127473,-587.69291,0.0001288,2]
[355241720,1741037127500,-1942.24418,0.000129,2]
[355241726,1741037150364,81.24,0.00012329,2]
[355241727,1741037150391,800.0,0.00012329,2]
[355241728,1741037150417,121.78,0.00012329,2]
[355241733,1741037257339,167.07,0.00012315,2]
[355241738,1741037393142,1000.0,0.0001224,2]
[355241748,1741037431938,-344.05761069,0.0001287,2]
[355241749,1741037432125,-243.63529931,0.0001287,2]
[355241750,1741037432135,-587.69292,0.0001287,2]
[355241751,1741037432145,-587.69291,0.0001287,2]
[355241752,1741037432154,-168.18415178,0.000129,2]
[355241753,1741037432164,-305.56354949,0.000129,2]
[355241754,1741037432174,-7285.45495313,0.000129,2]
[355241755,1741037432184,-917.92881617,0.000129,2]
[355241756,1741037432194,-550.0,0.00012936,2]
[355241757,1741037432204,-150.0,0.00012972,2]
[355241758,1741037432213,-500.0,0.00012973,2]
[355241759,1741037432223,-502.63934625,0.00012973,2]
[355241760,1741037432232,-3905.12,0.00012973,2]
[355241761,1741037432242,-171.54,0.00012973,2]
[355241762,1741037432251,-23589.8047089,0.00012986,2]
[355241763,1741037432263,-1945.1952911,0.00012986,2]
[355241764,1741037432272,-22922.0,0.00012986,2]
[355241765,1741037432282,-151.0,0.00012992,2]
[355241766,1741037432291,-292.18217475,0.00012992,2]
[355241767,1741037432300,-458.45055887,0.00012999,2]
[355241768,1741037432310,-1121.98878516,0.00012999,3]
[355241769,1741037432319,-500.0,0.00012999,2]
[355241770,1741037432329,-500.0,0.00012999,2]
[355241771,1741037432338,-500.0,0.00012999,2]
[355241772,1741037432347,-500.0,0.00012999,2]
[355241773,1741037432356,-500.0,0.00012999,2]
[355241774,1741037432366,-500.0,0.00012999,2]
[355241775,1741037432376,-500.0,0.00012999,2]
[355241776,1741037432386,-297.6588012,0.00012999,2]
[355241777,1741037432397,-500.0,0.00012999,2]
[355241778,1741037432406,-450.0,0.00012999,2]
[355241779,1741037432416,-193.0,0.00013,3]
[355241780,1741037432425,-36371.50187738,0.00013,2]
[355241783,1741037437892,-417.52338,0.00013,2]
[355241784,1741037438202,-12419.27763461,0.00013,2]
[355241785,1741037438215,-647.01660927,0.00013,2]
[355241795,1741037440163,-9567.92927007,0.00013,2]
[355241796,1741037440175,-1663974.01289448,0.00013,2]
[355241797,1741037440186,-416711.45358038,0.00013,2]
[355241798,1741037440237,-1105.42716375,0.00013,2]
[355241799,1741037440249,-1394.72401052,0.00013,2]
[355241800,1741037440260,-1299.8625784,0.00013,2]
[355241801,1741037440272,-86644.98860652,0.00013,2]
[355241812,1741037445349,-163.43135064,0.000129,2]
[355241813,1741037445359,-2763.1339819,0.00013,2]
[355241815,1741037445884,-52039.88404121,0.00013,2]
[355241816,1741037446068,-8745.31566284,0.00013,2]
[355241817,1741037446145,-455.02040106,0.00013,2]
[355241838,1741037698148,150.0,0.00012343,7]
[355241839,1741037728933,1593.0,0.00012,10]
[355241840,1741037763502,-864.08,0.00012635,2]
[355241841,1741037822473,-150.0,0.00012999,3]
[355241842,1741037919995,-300.0,0.00012636,2]
[355241843,1741037942813,-150.0,0.00012636,2]
[355241844,1741037963693,-300.0,0.00012636,2]
[355241845,1741037974407,550.0,0.00011,2]
[355241846,1741037994899,-150.0,0.00012599,2]
[355241847,1741038019149,-32.78678649,0.00012599,2]
[355241848,1741038019174,-117.21321351,0.00012635,2]
[355241849,1741038039871,-150.0,0.00012635,2]
[355241850,1741038060126,-150.0,0.0001267,2]
[355241851,1741038183462,160.5,0.00011981,2]
[355241852,1741038183687,160.5,0.00012181,2]
[355241853,1741038183919,160.5,0.0001238,2]
[355241854,1741038274397,362.23968522,0.00012448,2]
[355241855,1741038309287,2233.18,0.00011909,2]
[355241856,1741038323581,467.3,9.991e-05,2]
[355241857,1741038323721,3162.78031478,0.00012485,2]
[355241858,1741038323743,81.50085822,0.00012485,2]
[355241859,1741038323792,467.3,0.00012255,2]
[355241860,1741038341119,-7320453.43925208,0.00025376,45]
[355241861,1741038341144,-423.26243588,0.00025376,30]
[355241862,1741038341168,-1000.0,0.00025376,30]
[355241863,1741038341192,-204.2,0.00025376,30]
[355241864,1741038341219,-269.31775651,0.00025376,30]
[355241865,1741038341243,-178.7326937,0.00025376,60]
[355241866,1741038341267,-2298.0,0.00025376,42]
[355241867,1741038341296,-1170.7,0.00025376,120]
[355241868,1741038341320,-40570.78207615,0.00025376,30]
[355241869,1741038341345,-259.41161525,0.00025376,60]
[355241870,1741038341369,-226.0,0.00025376,120]
[355241871,1741038341393,-160.15521604,0.00025376,120]
[355241872,1741038341417,-170.70231016,0.00025376,120]
[355241873,1741038341441,-935.89157658,0.00025376,120]
[355241874,1741038341465,-212706.11904573,0.00025376,30]
[355241875,1741038341490,-1091.99,0.00025376,120]
[355241876,1741038341513,-6738.75235904,0.00025376,120]
[355241877,1741038341538,-3340.73136262,0.00025376,40]
[355241878,1741038341562,-5876.31524574,0.00025376,30]
[355241879,1741038341586,-29167.84704564,0.00025376,120]
[355241880,1741038341611,-8404.66838711,0.00025376,30]
[355241881,1741038341636,-33355.90749135,0.00025376,120]
[355241882,1741038341661,-4192.87455646,0.00025376,120]
[355241883,1741038341685,-6679.52502369,0.00025376,30]
[355241884,1741038341710,-17156.08478564,0.00025376,60]
[355241885,1741038341735,-8081.00073887,0.00025376,30]
[355241886,1741038341763,-5000.0,0.00025376,120]
[355241887,1741038341786,-10000.0,0.00025376,120]
[355241888,1741038341810,-10000.0,0.00025376,120]
[355241889,1741038341834,-10000.0,0.00025376,120]
[355241890,1741038341857,-10000.0,0.00025376,120]
[355241891,1741038341882,-10000.0,0.00025376,60]
[355241892,1741038341906,-10000.0,0.00025376,60]
[355241893,1741038341936,-10000.0,0.00025376,30]
[355241894,1741038341962,-10000.0,0.00025376,30]
[355241895,1741038341989,-10076.98,0.00025376,120]
[355241896,1741038342246,-10000.0,0.00025376,120]
[355241897,1741038342271,-10000.0,0.00025376,120]
[355241898,1741038342295,-10000.0,0.00025376,120]
[355241899,1741038342319,-10000.0,0.00025376,120]
[355241900,1741038342343,-10000.0,0.00025376,120]
[355241901,1741038342366,-10000.0,0.00025376,120]
[355241902,1741038342391,-10000.0,0.00025376,120]
[355241903,1741038342415,-7209.16197832,0.00025376,120]
[355241904,1741038342440,-10000.0,0.00025376,120]
[355241905,1741038342465,-10000.0,0.00025376,120]
[355241906,1741038342497,-10000.0,0.00025376,120]
[355241907,1741038342522,-3156.55025603,0.00025376,30]
[355241908,1741038342548,-2752.37202509,0.00025376,30]
[355241909,1741038342574,-2357.77511455,0.00025376,30]
[355241910,1741038342598,-4500.0,0.00025376,30]
[355241911,1741038342622,-2500.0,0.00025376,30]
[355241912,1741038342647,-3000.0,0.00025376,30]
[355241913,1741038342671,-3058.29725866,0.00025376,30]
[355241914,1741038342699,-10000.0,0.00025376,120]
[355241915,1741038342727,-10000.0,0.00025376,120]
[355241916,1741038342752,-10000.0,0.00025376,120]
[355241917,1741038342776,-7657.0,0.00025376,120]
[355241918,1741038342801,-10000.0,0.00025376,120]
[355241919,1741038342839,-10000.0,0.00025376,120]
[355241920,1741038342867,-10000.0,0.00025376,120]
[355241921,1741038342893,-10000.0,0.00025376,120]
[355241922,1741038342919,-10000.0,0.00025376,120]
[355241923,1741038342947,-10000.0,0.00025376,120]
[355241924,1741038342975,-10000.0,0.00025376,120]
[355241925,1741038343002,-300.0,0.00025376,30]
[355241926,1741038343029,-300.0,0.00025376,30]
[355241927,1741038343054,-400.0,0.00025376,30]
[355241928,1741038343080,-10000.0,0.00025376,120]
[355241929,1741038343105,-24772.03300776,0.00025376,30]
[355241930,1741038343130,-10000.0,0.00025376,120]
[355241931,1741038343155,-10000.0,0.00025376,120]
[355241932,1741038343180,-10000.0,0.00025376,120]
[355241933,1741038343206,-10000.0,0.00025376,120]
[355241934,1741038343232,-5309.13801842,0.00025376,30]
[355241935,1741038343257,-3625.3750026,0.00025376,30]
[355241936,1741038343282,-4083.57733558,0.00025376,30]
[355241937,1741038343307,-4897.27514998,0.00025376,30]
[355241938,1741038343332,-4405.5562629,0.00025376,30]
[355241939,1741038343356,-10000.0,0.00025376,120]
[355241940,1741038343390,-10000.0,0.00025376,120]
[355241941,1741038343417,-10000.0,0.00025376,120]
[355241942,1741038343444,-10000.0,0.00025376,120]
[355241943,1741038343471,-664.0,0.00025376,120]
[355241944,1741038343499,-5526.0,0.00025376,120]
[355241945,1741038343525,-21566.18247852,0.00025376,120]
[355241946,1741038343551,-4751.76516872,0.00025376,120]
[355241947,1741038343579,-4140.87369886,0.00025376,120]
[355241948,1741038343605,-3568.13469976,0.00025376,120]
[355241949,1741038343631,-4817.84306765,0.00025376,120]
[355241950,1741038343657,-4142.94058512,0.00025376,120]
[355241951,1741038343683,-7772.97703005,0.00025376,120]
[355241952,1741038343707,-4840.73608487,0.00025376,120]
[355241953,1741038343735,-9503.80737908,0.00025376,120]
[355241954,1741038343761,-4000.0,0.00025376,120]
[355241955,1741038343788,-10000.0,0.00025376,50]
[355241956,1741038343814,-1061.92876841,0.00025376,30]
[355241957,1741038343838,-3918.24843223,0.00025376,120]
[355241958,1741038343864,-7520.37582984,0.00025376,120]
[355241959,1741038343890,-5407.01811166,0.00025376,120]
[355241960,1741038343921,-349.0,0.00025376,120]
[355241961,1741038343951,-10000.0,0.00025376,120]
[355241962,1741038343984,-300244.58833339,0.00025376,120]
[355241963,1741038344012,-10000.0,0.00025376,120]
[355241964,1741038344037,-10000.0,0.00025376,120]
[355241965,1741038344637,2886.34115483,0.00025376,30]
[355241966,1741038348952,963.0,0.00025376,30]
[355241967,1741038368544,168.99,0.00012244,2]
[355241968,1741038407753,631.01,0.00011883,2]
[355241969,1741038407779,102.95,0.00011883,2]
[355241970,1741038509438,-150.0,0.00012548,2]
[355241971,1741038509479,-160.5,0.0001258,2]
[355241972,1741038509519,-182.78678648,0.00012671,2]
[355241973,1741038509561,-150.0,0.00012771,2]
[355241974,1741038509603,-3429.23857872,0.00012779,2]
[355241975,1741038509651,-150.0,0.00012779,2]
[355241976,1741038509694,-160.5,0.0001278,2]
[355241977,1741038509734,-164.62473866,0.000128,2]
[355241978,1741038509776,-1046.48638267,0.000128,2]
[355241979,1741038509816,-205.0848645,0.000128,2]
[355241980,1741038509878,-308.40764848,0.000128,2]
[355241981,1741038509921,-334.73128644,0.000128,2]
[355241982,1741038509962,-1046.48638266,0.00012811,2]
[355241983,1741038510004,-150.0,0.00012821,2]
[355241984,1741038510047,-505.29571489,0.00012822,2]
[355241985,1741038510133,-4016.60730636,0.000128,2]
[355241986,1741038510176,-91.70428511,0.00012822,2]
[355241987,1741038510218,-999.99,0.00012822,2]
[355241988,1741038510260,-690.91975956,0.00012822,2]
[355241989,1741038517506,-4016.60730632,0.00012811,2]
[355241990,1741038533690,-5455.57024044,0.00012822,2]
[355241991,1741038533732,-150.99,0.00012822,2]
[355241992,1741038533774,-293.85,0.00012822,2]
[355241993,1741038533815,-177.67838528,0.00012822,2]
[355241994,1741038533875,-5530.17604021,0.00012822,2]
[355241995,1741038540553,-4292.13557451,0.00012822,2]
[355241996,1741038540591,-3500.72,0.00012822,2]
[355241997,1741038541965,300.0,0.00012821,2]
[355242224,1741038558750,-4016.60730632,0.00012822,2]
[355242225,1741038558795,-1046.48638266,0.00012833,2]
[355242226,1741038558841,-1247.16023006,0.00012833,2]
[355242227,1741038558909,-1858.0420922,0.00012833,2]
[355242236,1741038573172,-911.40498406,0.00012833,2]
[355242237,1741038573211,-171.496,0.00012844,2]
[355242238,1741038573288,-2834.19803188,0.00012844,2]
[355242241,1741038586783,162.96,9.604e-05,2]
[355242242,1741038604452,-332.69679765,0.000128,2]
[355242243,1741038604491,-550.0,0.00012822,2]
[355242244,1741038604529,-150.0,0.00012822,2]
[355242245,1741038604567,-639.06496812,0.00012844,2]
[355242246,1741038604747,-1656.47646846,0.00012844,2]
[355242258,1741038632297,-1508.28505914,0.00012844,2]
[355242259,1741038632461,-851.84577872,0.00012844,2]
[355242260,1741038632471,-1589.30254875,0.00012846,2]
[355242261,1741038632480,-150.0,0.00012847,2]
[355242262,1741038632492,-2350.48416367,0.00012855,2]
[355242263,1741038632501,-300.0,0.00012855,2]
[355242264,1741038632511,-4016.60730632,0.00012856,2]
[355242265,1741038632521,-150.0,0.00012858,2]
[355242266,1741038632531,-3016.69,0.00012858,2]
[355242267,1741038632542,-19999.99,0.00012858,2]
[355242268,1741038632552,-1298.06,0.00012858,2]
[355242269,1741038632562,-3591.26,0.00012858,2]
[355242270,1741038632571,-299.99,0.00012858,2]
[355242271,1741038632581,-4016.60730632,0.00012867,2]
[355242272,1741038632590,-150.99,0.00012867,2]
[355242273,1741038632601,-1722.06,0.00012867,2]
[355242274,1741038632611,-480.77,0.00012867,2]
[355242275,1741038632621,-5503.33,0.00012867,2]
[355242276,1741038632631,-677.28,0.00012867,2]
[355242277,1741038632641,-200.88683,0.0001287,2]
[355242278,1741038632651,-4016.60730632,0.00012878,2]
[355242279,1741038632661,-4016.60730632,0.00012889,2]
[355242280,1741038632670,-150.0,0.00012899,2]
[355242281,1741038632680,-63440.97773032,0.000129,2]
[355242282,1741038632692,-97133.7937489,0.000129,2]
[355242283,1741038632704,-325124.08302494,0.000129,2]
[355242284,1741038632714,-7717.327685,0.000129,2]
[355242285,1741038632723,-159.62185288,0.000129,2]
[355242286,1741038632733,-4016.60730632,0.000129,2]
[355242287,1741038632743,-403.42689372,0.000129,2]
[355242288,1741038632754,-9118.53850923,0.000129,2]
[355242289,1741038632764,-168.99,0.00012917,2]
[355242290,1741038632774,-150.0,0.00012944,2]
[355242291,1741038632783,-500.0,0.00012973,2]
[355242292,1741038632793,-170.73306571,0.00012973,2]
[355242293,1741038632803,-500.0,0.00012973,2]
[355242294,1741038632813,-205.60242739,0.00012973,2]
[355242295,1741038632822,-160.93586215,0.00012973,2]
[355242296,1741038632832,-278.10969053,0.00012973,2]
[355242297,1741038632842,-160.5,0.00012979,2]
[355242298,1741038632851,-163.08395353,0.0001299,2]
[355242299,1741038632861,-136.40825605,0.00012999,3]
[355242300,1741038632870,-150.0,0.00012999,3]
[355242301,1741038632879,-1105.6127077,0.00012999,3]
[355242302,1741038632889,-1105.6127077,0.00012999,3]
[355242303,1741038632899,-300.0,0.00012999,2]
[355242304,1741038632908,-375.0,0.00012999,2]
[355242305,1741038632917,-201.03021518,0.00013,2]
[355242306,1741038632927,-752.61734995,0.00013,2]
[355242307,1741038632936,-84002.90969345,0.00013,2]
[355242308,1741038638020,-550.34850008,0.00013,2]
[355242309,1741038638173,-149.72458525,0.00013,2]
[355242310,1741038638225,-10366.4916,0.00013,2]
[355242311,1741038638239,-906.34071833,0.00013,2]
[355242312,1741038640159,-416711.45358038,0.00013,2]
[355242313,1741038640412,-1132.79724919,0.00013,2]
[355242314,1741038640619,-559.49997513,0.00013,2]
[355242315,1741038640637,-862.4111814,0.00013,2]
[355242316,1741038640673,-2144.77152025,0.00013,2]
[355242595,1741038647952,-708.91030567,0.00013,2]
[355242596,1741038648132,-2115.6836848,0.00013,2]
[355242597,1741038721662,300.0,0.00012899,2]
[355242598,1741038789274,-4276.27632998,0.000129,2]
[355242599,1741038793619,150.0,0.00012364,7]
[355242600,1741038954903,384.09,0.00012362,2]
[355242601,1741038954926,615.91,0.00012362,2]
[355242602,1741039302815,-171.496,0.0001274,2]
[355242603,1741039302842,-2778.61,0.0001274,2]
[355242604,1741039302871,-550.0,0.00012805,2]
[355242605,1741039302899,-150.0,0.00012873,2]
[355242606,1741039302924,-17044.81205319,0.00012873,2]
[355242607,1741039302950,-5000.0,0.00012877,2]
[355242608,1741039302976,-150.0,0.00012899,2]
[355242609,1741039303002,-155.08194681,0.000129,2]
[355242610,1741039414051,184.09,0.00010422,2]
[355242611,1741039414076,236.48,0.00010422,2]
[355242612,1741039473319,213.0,0.00012377,2]
[355242625,1741039718232,-412.53,0.00012686,2]
[355242626,1741039734299,-8.04,0.00012686,2]
[355242627,1741039734349,-200.88683421,0.0001287,2]
[355242628,1741039734389,-2000.0,0.00012896,2]
[355242629,1741039734431,-200.0,0.00012896,2]
[355242630,1741039734472,-3492.62946229,0.00012899,2]
[355242631,1741039734579,-190.73619669,0.00012899,2]
[355242632,1741039736136,-163.43135064,0.00012899,2]
[355242635,1741039790280,-150.0,0.00012899,2]
[355242636,1741039790304,-23.46704497,0.000129,2]
[355242637,1741039803611,-300.0,0.00012899,2]
[355242638,1741039804248,350.52,0.00011,2]
[355242639,1741039804280,199.48,0.00011,2]
[355242640,1741039825835,-1623.97355503,0.000129,2]
[355242641,1741039825874,-451.58644497,0.000129,2]
[355242650,1741039832445,-272.80967872,0.000129,2]
[355242651,1741039832458,-275.60387631,0.000129,2]
[355242652,1741039832470,-22.90705447,0.000129,2]
[355242653,1741039832481,-36334.57594553,0.000129,2]
[355242654,1741039832491,-12633.1717,0.000129,2]
[355242655,1741039832501,-1000.0,0.000129,2]
[355242656,1741039832512,-5499.91586002,0.000129,2]
[355242657,1741039832522,-537.44293988,0.000129,2]
[355242658,1741039832532,-34184.24807547,0.000129,2]
[355242659,1741039832542,-156.75948836,0.000129,2]
[355242660,1741039832552,-6079.02567282,0.000129,2]
[355242661,1741039832561,-4356.20299038,0.000129,2]
[355242662,1741039832572,-217.90846751,0.000129,2]
[355242663,1741039832583,-328.26804308,0.000129,2]
[355242664,1741039832594,-406.69797652,0.00012973,2]
[355242665,1741039832605,-500.0,0.00012973,2]
[355242666,1741039832616,-307.74164499,0.00012973,2]
[355242667,1741039832627,-251.17,0.00012999,2]
[355242668,1741039832638,-7600.78,0.00012999,2]
[355242669,1741039832649,-150.99,0.00012999,2]
[355242670,1741039832659,-299.99,0.00012999,2]
[355242671,1741039832669,-165.29038629,0.00012999,2]
[355242672,1741039832680,-500.0,0.00012999,2]
[355242673,1741039832690,-150.0,0.00012999,3]
[355242674,1741039832700,-252.35341769,0.00012999,2]